[Event "*** Titled Tuesday Blitz"]
[Site "Chess.com"]
[Date "2020.05.19"]
[Round "4"]
[White "Raja3401"]
[Black "Sebastian"]
[Result "1-0"]
[WhiteElo "2733"]
[BlackElo "2900"]
[TimeControl "180+1"]
[EndTime "12:40:49 PDT"]
[Termination "Raja3401 won on time"]

1. e4 {[%clk 0:03:00.9]} 1... e5 {[%clk 0:02:59.6]} 2. Nf3 {[%clk 0:03:00.9]}
2... Nc6 {[%clk 0:03:00.2]} 3. Bb5 {[%clk 0:03:00.8]} 3... Nf6 {[%clk
0:03:00.1]} 4. O-O {[%clk 0:03:00.2]} 4... Nxe4 {[%clk 0:03:00.2]} 5. Re1 {[%clk
0:02:59.6]} 5... Nd6 {[%clk 0:03:00.5]} 6. Nxe5 {[%clk 0:02:59.8]} 6... Be7
{[%clk 0:03:01]} 7. Bf1 {[%clk 0:02:59.3]} 7... Nf5 {[%clk 0:03:01.3]} 8. Nf3
{[%clk 0:02:58]} 8... O-O {[%clk 0:03:01.5]} 9. d4 {[%clk 0:02:58.3]} 9... d5
{[%clk 0:03:01.8]} 10. c3 {[%clk 0:02:53.9]} 10... Bd6 {[%clk 0:03:01]} 11. Bd3
{[%clk 0:02:51.9]} 11... Re8 {[%clk 0:02:40.3]} 12. Rxe8+ {[%clk 0:02:42.9]}
12... Qxe8 {[%clk 0:02:40]} 13. Nbd2 {[%clk 0:02:42.4]} 13... f6 {[%clk
0:02:29.3]} 14. Nf1 {[%clk 0:02:34.5]} 14... Qf7 {[%clk 0:02:29.2]} 15. Ng3
{[%clk 0:02:30.3]} 15... Nce7 {[%clk 0:02:21.9]} 16. Qc2 {[%clk 0:02:27.4]}
16... g6 {[%clk 0:02:17.6]} 17. Bd2 {[%clk 0:02:25.5]} 17... Bd7 {[%clk
0:01:59.6]} 18. Re1 {[%clk 0:02:14.4]} 18... Re8 {[%clk 0:01:47.9]} 19. c4
{[%clk 0:02:03.7]} 19... Nxg3 {[%clk 0:01:28.6]} 20. hxg3 {[%clk 0:02:03.6]}
20... dxc4 {[%clk 0:01:29.2]} 21. Bxc4 {[%clk 0:02:02]} 21... Nd5 {[%clk
0:01:29.9]} 22. Qb3 {[%clk 0:01:52.1]} 22... Rxe1+ {[%clk 0:01:19.6]} 23. Nxe1
{[%clk 0:01:51.1]} 23... Bc6 {[%clk 0:00:51.8]} 24. Nc2 {[%clk 0:01:48.2]} 24...
b5 {[%clk 0:00:51.2]} 25. Bxb5 {[%clk 0:01:44.4]} 25... Bxb5 {[%clk 0:00:51.8]}
26. Qxb5 {[%clk 0:01:45]} 26... Nb6 {[%clk 0:00:52.5]} 27. b3 {[%clk 0:01:34.7]}
27... Qd5 {[%clk 0:00:52.3]} 28. Qe8+ {[%clk 0:01:27.8]} 28... Kg7 {[%clk
0:00:52.4]} 29. Bf4 {[%clk 0:01:09.7]} 29... Bxf4 {[%clk 0:00:34.1]} 30. gxf4
{[%clk 0:01:05.7]} 30... Qd6 {[%clk 0:00:34]} 31. g3 {[%clk 0:00:55.3]} 31...
Nd5 {[%clk 0:00:28.3]} 32. Ne3 {[%clk 0:00:35.2]} 32... Nxe3 {[%clk 0:00:17.3]}
33. Qxe3 {[%clk 0:00:32.6]} 33... Kf7 {[%clk 0:00:15.5]} 34. Qc3 {[%clk
0:00:31.6]} 34... Ke7 {[%clk 0:00:12.4]} 35. Qc4 {[%clk 0:00:30.7]} 35... Kf8
{[%clk 0:00:10.6]} 36. Kg2 {[%clk 0:00:18.3]} 36... Kg7 {[%clk 0:00:04.6]} 37.
Qc5 {[%clk 0:00:17.8]} 37... Qd7 {[%clk 0:00:03.2]} 38. Qxa7 {[%clk 0:00:17.3]}
38... h5 {[%clk 0:00:01.3]} 39. Qc5 {[%clk 0:00:10.3]} 1-0

[Event "*** Titled Tuesday Blitz"]
[Site "Chess.com"]
[Date "2020.05.19"]
[Round "4"]
[White "Azoulas1"]
[Black "doctorcristian"]
[Result "0-1"]
[WhiteElo "1959"]
[BlackElo "2363"]
[TimeControl "180+1"]
[EndTime "12:40:49 PDT"]
[Termination "doctorcristian won on time"]

1. e4 {[%clk 0:03:00.9]} 1... c6 {[%clk 0:02:52.8]} 2. d4 {[%clk 0:02:59.1]}
2... d5 {[%clk 0:02:52.5]} 3. Nc3 {[%clk 0:02:58.8]} 3... dxe4 {[%clk
0:02:51.5]} 4. Nxe4 {[%clk 0:02:58.2]} 4... Nf6 {[%clk 0:02:51.7]} 5. Nxf6+
{[%clk 0:02:48.1]} 5... gxf6 {[%clk 0:02:51]} 6. Nf3 {[%clk 0:02:46.3]} 6... Bg4
{[%clk 0:02:50.1]} 7. Be2 {[%clk 0:02:45.2]} 7... Bg7 {[%clk 0:02:49.9]} 8. h3
{[%clk 0:02:44.4]} 8... Bh5 {[%clk 0:02:49]} 9. O-O {[%clk 0:02:44.1]} 9... O-O
{[%clk 0:02:48.4]} 10. Be3 {[%clk 0:02:42.3]} 10... Nd7 {[%clk 0:02:47.1]} 11.
c4 {[%clk 0:02:41.5]} 11... e6 {[%clk 0:02:46.7]} 12. Rc1 {[%clk 0:02:39.5]}
12... Re8 {[%clk 0:02:44.1]} 13. b3 {[%clk 0:02:37.4]} 13... Nb6 {[%clk
0:02:32]} 14. a4 {[%clk 0:02:15.9]} 14... Nc8 {[%clk 0:02:26.5]} 15. Nh2 {[%clk
0:02:02.2]} 15... Bxe2 {[%clk 0:02:23.3]} 16. Qxe2 {[%clk 0:02:01.5]} 16... f5
{[%clk 0:02:14.4]} 17. Rfd1 {[%clk 0:01:58.5]} 17... Ne7 {[%clk 0:02:13.4]} 18.
Nf3 {[%clk 0:01:55.4]} 18... Ng6 {[%clk 0:02:11.3]} 19. Bg5 {[%clk 0:01:49.6]}
19... f6 {[%clk 0:02:05.6]} 20. Be3 {[%clk 0:01:32]} 20... Qd7 {[%clk 0:02:05]}
21. h4 {[%clk 0:01:25.5]} 21... Qc7 {[%clk 0:01:49.9]} 22. h5 {[%clk 0:01:12.1]}
22... Nf4 {[%clk 0:01:48.6]} 23. Qd2 {[%clk 0:01:09.7]} 23... Nxh5 {[%clk
0:01:46.6]} 24. d5 {[%clk 0:01:04.1]} 24... Rad8 {[%clk 0:01:33.7]} 25. Qb4
{[%clk 0:00:46.8]} 25... Bf8 {[%clk 0:01:03]} 26. Qe1 {[%clk 0:00:31.9]} 26...
exd5 {[%clk 0:01:00.5]} 27. cxd5 {[%clk 0:00:30.7]} 27... f4 {[%clk 0:01:00.3]}
28. dxc6 {[%clk 0:00:15.7]} 28... fxe3 {[%clk 0:00:58.9]} 29. cxb7 {[%clk
0:00:14.5]} 29... exf2+ {[%clk 0:00:52.1]} 30. Qxf2 {[%clk 0:00:13.7]} 30...
Rxd1+ {[%clk 0:00:50.1]} 31. Rxd1 {[%clk 0:00:13.4]} 31... Qxb7 {[%clk
0:00:49.4]} 32. Qh4 {[%clk 0:00:12.5]} 32... Qf7 {[%clk 0:00:40.5]} 33. Rd4
{[%clk 0:00:09.2]} 33... Bc5 {[%clk 0:00:39.2]} 34. Kh2 {[%clk 0:00:06.5]} 34...
Bxd4 {[%clk 0:00:38.5]} 35. Nxd4 {[%clk 0:00:06.2]} 35... Qg6 {[%clk 0:00:34.9]}
36. Nc6 {[%clk 0:00:04]} 36... Re4 {[%clk 0:00:33.7]} 37. Qh3 {[%clk 0:00:02.4]}
37... Qg4 {[%clk 0:00:30.7]} 0-1

[Event "*** Titled Tuesday Blitz"]
[Site "Chess.com"]
[Date "2020.05.19"]
[Round "4"]
[White "ljuks68"]
[Black "cukin84"]
[Result "0-1"]
[WhiteElo "2355"]
[BlackElo "2135"]
[TimeControl "180+1"]
[EndTime "12:40:51 PDT"]
[Termination "cukin84 won on time"]

1. e4 {[%clk 0:03:00.9]} 1... c6 {[%clk 0:02:59.2]} 2. d4 {[%clk 0:03:00]} 2...
d5 {[%clk 0:02:59.4]} 3. e5 {[%clk 0:03:00.4]} 3... c5 {[%clk 0:02:58.7]} 4. Nf3
{[%clk 0:02:59.9]} 4... Nc6 {[%clk 0:02:58.9]} 5. c4 {[%clk 0:02:59.4]} 5...
dxc4 {[%clk 0:02:54.5]} 6. d5 {[%clk 0:02:56.5]} 6... Nd4 {[%clk 0:02:53.2]} 7.
Nxd4 {[%clk 0:02:56.1]} 7... cxd4 {[%clk 0:02:53]} 8. Qxd4 {[%clk 0:02:56.1]}
8... e6 {[%clk 0:02:47.4]} 9. d6 {[%clk 0:02:52.5]} 9... Nh6 {[%clk 0:02:37.6]}
10. Bxc4 {[%clk 0:02:46.5]} 10... Nf5 {[%clk 0:02:37.4]} 11. Qd3 {[%clk
0:02:24.8]} 11... Qa5+ {[%clk 0:02:34.7]} 12. Qc3 {[%clk 0:02:21.9]} 12... Qd8
{[%clk 0:02:20.6]} 13. O-O {[%clk 0:02:14.7]} 13... Bd7 {[%clk 0:02:19.6]} 14.
Nd2 {[%clk 0:02:09.3]} 14... g6 {[%clk 0:02:18.6]} 15. Ne4 {[%clk 0:02:08]}
15... Bg7 {[%clk 0:02:18.4]} 16. Bg5 {[%clk 0:02:07.2]} 16... Qb6 {[%clk
0:02:08.4]} 17. Nf6+ {[%clk 0:02:05.7]} 17... Bxf6 {[%clk 0:02:07.9]} 18. Bxf6
{[%clk 0:02:05.8]} 18... Rg8 {[%clk 0:02:07.1]} 19. Rac1 {[%clk 0:01:34.1]}
19... Rc8 {[%clk 0:02:00.1]} 20. Qd3 {[%clk 0:01:28.9]} 20... a6 {[%clk
0:01:58.4]} 21. Rfd1 {[%clk 0:01:22]} 21... h6 {[%clk 0:01:54.3]} 22. Bb3 {[%clk
0:01:18.2]} 22... Rc5 {[%clk 0:01:32.3]} 23. Rc4 {[%clk 0:00:54.8]} 23... Qc6
{[%clk 0:01:17.9]} 24. Rdc1 {[%clk 0:00:52.7]} 24... b6 {[%clk 0:01:10.3]} 25.
Ba4 {[%clk 0:00:50.1]} 25... Qb7 {[%clk 0:01:10]} 26. Rxc5 {[%clk 0:00:37.7]}
26... bxc5 {[%clk 0:01:04.5]} 27. Rxc5 {[%clk 0:00:33.8]} 27... Bxa4 {[%clk
0:00:59.5]} 28. Rc7 {[%clk 0:00:33.5]} 28... Qd5 {[%clk 0:00:19.8]} 29. Qxd5
{[%clk 0:00:23.3]} 29... exd5 {[%clk 0:00:18.5]} 30. Rc8+ {[%clk 0:00:14.7]}
30... Kd7 {[%clk 0:00:18.8]} 31. Rxg8 {[%clk 0:00:09.9]} 31... d4 {[%clk
0:00:18.4]} 32. Rf8 {[%clk 0:00:01.8]} 32... d3 {[%clk 0:00:17.6]} 33. e6+
{[%clk 0:00:02.1]} 33... fxe6 {[%clk 0:00:15.4]} 34. Bc3 {[%clk 0:00:02.4]}
34... Nxd6 {[%clk 0:00:10.5]} 35. Rg8 {[%clk 0:00:02.6]} 35... g5 {[%clk
0:00:09.5]} 36. Rg6 {[%clk 0:00:02]} 36... Ne4 {[%clk 0:00:09.4]} 37. Ba5 {[%clk
0:00:01.5]} 37... Kd6 {[%clk 0:00:05.8]} 0-1

[Event "*** Titled Tuesday Blitz"]
[Site "Chess.com"]
[Date "2020.05.19"]
[Round "4"]
[White "nabukatnezarr"]
[Black "Grandelicious"]
[Result "0-1"]
[WhiteElo "2506"]
[BlackElo "2752"]
[TimeControl "180+1"]
[EndTime "12:40:52 PDT"]
[Termination "Grandelicious won by resignation"]

1. d4 {[%clk 0:03:00.9]} 1... d5 {[%clk 0:02:57.8]} 2. c4 {[%clk 0:03:00.8]}
2... e6 {[%clk 0:02:58.1]} 3. Nc3 {[%clk 0:03:00.5]} 3... a6 {[%clk 0:02:58.2]}
4. cxd5 {[%clk 0:02:49.1]} 4... exd5 {[%clk 0:02:59.1]} 5. Nf3 {[%clk
0:02:39.5]} 5... h6 {[%clk 0:02:58.6]} 6. Qb3 {[%clk 0:02:37.3]} 6... Nf6 {[%clk
0:02:56.9]} 7. Bf4 {[%clk 0:02:30.2]} 7... Bd6 {[%clk 0:02:52.6]} 8. Be5 {[%clk
0:02:28.2]} 8... c6 {[%clk 0:02:43.1]} 9. e3 {[%clk 0:02:20.2]} 9... O-O {[%clk
0:02:40.8]} 10. Bd3 {[%clk 0:02:18.9]} 10... Bxe5 {[%clk 0:02:37.1]} 11. Nxe5
{[%clk 0:02:19.8]} 11... Nbd7 {[%clk 0:02:33.1]} 12. Nf3 {[%clk 0:02:16.6]}
12... Ne8 {[%clk 0:02:28.1]} 13. h3 {[%clk 0:02:13.3]} 13... Nd6 {[%clk
0:02:24.9]} 14. Qc2 {[%clk 0:02:03.2]} 14... Qe7 {[%clk 0:02:03.9]} 15. O-O-O
{[%clk 0:01:54.9]} 15... Re8 {[%clk 0:01:48]} 16. Kb1 {[%clk 0:01:54.2]} 16...
Ne4 {[%clk 0:01:44.3]} 17. Bxe4 {[%clk 0:01:43.8]} 17... dxe4 {[%clk 0:01:44.1]}
18. Nd2 {[%clk 0:01:44.7]} 18... Nf6 {[%clk 0:01:33.5]} 19. Nc4 {[%clk
0:01:41.7]} 19... Bf5 {[%clk 0:01:27.4]} 20. g4 {[%clk 0:01:38.1]} 20... Bh7
{[%clk 0:01:27.2]} 21. Nb6 {[%clk 0:01:30.1]} 21... Rad8 {[%clk 0:01:24.9]} 22.
Nca4 {[%clk 0:01:29.3]} 22... Bg6 {[%clk 0:01:08.4]} 23. Rdg1 {[%clk 0:01:25.4]}
23... Rxd4 {[%clk 0:01:01.2]} 24. h4 {[%clk 0:01:06.3]} 24... Red8 {[%clk
0:00:51.5]} 25. h5 {[%clk 0:00:40.6]} 25... Bh7 {[%clk 0:00:51.5]} 26. g5 {[%clk
0:00:40.5]} 26... hxg5 {[%clk 0:00:51.9]} 27. Rxg5 {[%clk 0:00:41.3]} 27... Rd2
{[%clk 0:00:49.6]} 28. Qc1 {[%clk 0:00:35.1]} 28... Rxf2 {[%clk 0:00:41.7]} 29.
Rhg1 {[%clk 0:00:20.8]} 29... Ne8 {[%clk 0:00:38.1]} 30. Qc3 {[%clk 0:00:21.3]}
30... Qf6 {[%clk 0:00:31.1]} 31. Re5 {[%clk 0:00:16.5]} 31... Rf1+ {[%clk
0:00:29.7]} 32. Rxf1 {[%clk 0:00:13.5]} 32... Qxf1+ {[%clk 0:00:30.6]} 33. Qc1
{[%clk 0:00:12.9]} 33... Qd3+ {[%clk 0:00:29.3]} 34. Ka1 {[%clk 0:00:11.3]}
34... Nf6 {[%clk 0:00:25.3]} 35. Nc5 {[%clk 0:00:10.5]} 35... Qxe3 {[%clk
0:00:25.6]} 36. Kb1 {[%clk 0:00:06.8]} 36... Qd4 {[%clk 0:00:22.6]} 37. Nxb7
{[%clk 0:00:04.4]} 37... e3+ {[%clk 0:00:20.7]} 38. Ka1 {[%clk 0:00:03.9]} 38...
Qd1 {[%clk 0:00:17.4]} 39. Rc5 {[%clk 0:00:04.6]} 39... e2 {[%clk 0:00:15.8]}
40. Nxd8 {[%clk 0:00:04.4]} 40... e1=Q {[%clk 0:00:16.2]} 0-1

[Event "*** Titled Tuesday Blitz"]
[Site "Chess.com"]
[Date "2020.05.19"]
[Round "4"]
[White "almaguerjm"]
[Black "CMS13"]
[Result "0-1"]
[WhiteElo "2327"]
[BlackElo "2199"]
[TimeControl "180+1"]
[EndTime "12:40:52 PDT"]
[Termination "CMS13 won by resignation"]

1. d4 {[%clk 0:03:00.9]} 1... d5 {[%clk 0:02:59.7]} 2. Nc3 {[%clk 0:02:50.4]}
2... Nf6 {[%clk 0:02:58.5]} 3. Bf4 {[%clk 0:02:48.9]} 3... e6 {[%clk 0:02:56.5]}
4. e3 {[%clk 0:02:48.4]} 4... c5 {[%clk 0:02:56.2]} 5. Nb5 {[%clk 0:02:42.5]}
5... Na6 {[%clk 0:02:54.3]} 6. c3 {[%clk 0:02:42.4]} 6... Bd7 {[%clk 0:02:48.8]}
7. a4 {[%clk 0:02:42.1]} 7... Be7 {[%clk 0:02:48]} 8. dxc5 {[%clk 0:01:55.7]}
8... Bxc5 {[%clk 0:02:45.8]} 9. Nd6+ {[%clk 0:01:54.7]} 9... Bxd6 {[%clk
0:02:45]} 10. Bxd6 {[%clk 0:01:55.6]} 10... Ne4 {[%clk 0:02:41.2]} 11. Ba3
{[%clk 0:01:55.4]} 11... Qf6 {[%clk 0:02:31.7]} 12. Nf3 {[%clk 0:01:41]} 12...
Nac5 {[%clk 0:02:17.7]} 13. Qd4 {[%clk 0:01:13.5]} 13... Nxa4 {[%clk 0:02:00.4]}
14. Qxf6 {[%clk 0:01:05.2]} 14... Nxf6 {[%clk 0:02:00.1]} 15. Bd3 {[%clk
0:00:59.4]} 15... Nb6 {[%clk 0:01:57.7]} 16. Ne5 {[%clk 0:00:58]} 16... a6
{[%clk 0:01:39.4]} 17. Bc5 {[%clk 0:00:54.5]} 17... Nc8 {[%clk 0:01:35.2]} 18.
g4 {[%clk 0:00:42.6]} 18... Ne7 {[%clk 0:01:31.3]} 19. g5 {[%clk 0:00:38.8]}
19... Ne4 {[%clk 0:01:25.7]} 20. Bxe4 {[%clk 0:00:39]} 20... dxe4 {[%clk
0:01:25.6]} 21. O-O-O {[%clk 0:00:28.3]} 21... Bc6 {[%clk 0:01:20.4]} 22. Bxe7
{[%clk 0:00:21.7]} 22... Kxe7 {[%clk 0:01:19.9]} 23. Nxc6+ {[%clk 0:00:22.4]}
23... bxc6 {[%clk 0:01:20.3]} 24. Rd4 {[%clk 0:00:22.9]} 24... f5 {[%clk
0:01:15.6]} 25. gxf6+ {[%clk 0:00:22.7]} 25... gxf6 {[%clk 0:01:16.5]} 26. Rxe4
{[%clk 0:00:23.1]} 26... Rhg8 {[%clk 0:01:16.3]} 27. Rh4 {[%clk 0:00:23.3]}
27... Rg7 {[%clk 0:01:14.1]} 28. Rd1 {[%clk 0:00:23.9]} 28... Rd8 {[%clk
0:01:10.7]} 29. Rxd8 {[%clk 0:00:23.7]} 29... Kxd8 {[%clk 0:01:11.6]} 30. Re4
{[%clk 0:00:23.6]} 30... e5 {[%clk 0:01:05.4]} 31. f4 {[%clk 0:00:23.2]} 31...
exf4 {[%clk 0:01:01.6]} 32. Rxf4 {[%clk 0:00:24.1]} 32... Rg1+ {[%clk 0:01:01]}
33. Kc2 {[%clk 0:00:23.9]} 33... Rg2+ {[%clk 0:01:01.2]} 34. Kb3 {[%clk
0:00:24.5]} 34... Rxh2 {[%clk 0:01:00.7]} 35. Rxf6 {[%clk 0:00:24.9]} 35... Kc7
{[%clk 0:01:00.3]} 36. e4 {[%clk 0:00:21.7]} 36... h5 {[%clk 0:00:58.8]} 37. e5
{[%clk 0:00:22]} 37... Re2 {[%clk 0:00:57.9]} 38. e6 {[%clk 0:00:19.7]} 38... h4
{[%clk 0:00:57.2]} 39. Rh6 {[%clk 0:00:18.5]} 39... Re4 {[%clk 0:00:56.2]} 40.
Ka3 {[%clk 0:00:18]} 40... Kd6 {[%clk 0:00:55]} 41. b3 {[%clk 0:00:18.1]} 41...
Ke7 {[%clk 0:00:55]} 42. c4 {[%clk 0:00:18.1]} 42... c5 {[%clk 0:00:51.1]} 43.
Rh5 {[%clk 0:00:17.6]} 43... Kxe6 {[%clk 0:00:49.7]} 44. Rxc5 {[%clk 0:00:17.7]}
44... h3 {[%clk 0:00:49.4]} 45. Ra5 {[%clk 0:00:17.3]} 45... Rh4 {[%clk
0:00:40.6]} 46. Rxa6+ {[%clk 0:00:14.5]} 46... Kd7 {[%clk 0:00:39.5]} 47. Kb4
{[%clk 0:00:11.8]} 47... h2 {[%clk 0:00:39.4]} 48. Ra7+ {[%clk 0:00:12.3]} 48...
Kc8 {[%clk 0:00:36.8]} 49. Ra1 {[%clk 0:00:12.1]} 49... h1=Q {[%clk 0:00:35.9]}
50. Rxh1 {[%clk 0:00:12.7]} 50... Rxh1 {[%clk 0:00:36.3]} 51. Kc5 {[%clk
0:00:13.5]} 51... Kc7 {[%clk 0:00:35.2]} 52. b4 {[%clk 0:00:13.8]} 52... Rh5+
{[%clk 0:00:35.2]} 53. Kd4 {[%clk 0:00:13.8]} 53... Kc6 {[%clk 0:00:34.6]} 54.
Ke4 {[%clk 0:00:13.4]} 54... Rh4+ {[%clk 0:00:33.9]} 55. Kd3 {[%clk 0:00:13.9]}
55... Kb6 {[%clk 0:00:33.6]} 56. Kc3 {[%clk 0:00:13.9]} 56... Kc6 {[%clk
0:00:33.7]} 57. Kd3 {[%clk 0:00:14.4]} 57... Kd6 {[%clk 0:00:32.6]} 58. Ke3
{[%clk 0:00:14.5]} 58... Rxc4 {[%clk 0:00:31.4]} 0-1

[Event "*** Titled Tuesday Blitz"]
[Site "Chess.com"]
[Date "2020.05.19"]
[Round "4"]
[White "Dr-Bassem"]
[Black "MateSchmate"]
[Result "0-1"]
[WhiteElo "2781"]
[BlackElo "2544"]
[TimeControl "180+1"]
[EndTime "12:40:53 PDT"]
[Termination "MateSchmate won on time"]

1. e4 {[%clk 0:03:00.9]} 1... e6 {[%clk 0:02:59.9]} 2. d3 {[%clk 0:03:00.7]}
2... d5 {[%clk 0:03:00.4]} 3. Nd2 {[%clk 0:03:01.3]} 3... Nf6 {[%clk 0:03:00.9]}
4. Ngf3 {[%clk 0:03:01.8]} 4... Bc5 {[%clk 0:03:00.7]} 5. c3 {[%clk 0:02:59.9]}
5... dxe4 {[%clk 0:02:59.4]} 6. Nxe4 {[%clk 0:03:00.3]} 6... Nxe4 {[%clk
0:02:55.7]} 7. Qa4+ {[%clk 0:03:00.7]} 7... Bd7 {[%clk 0:02:48.1]} 8. Qxe4
{[%clk 0:03:01.1]} 8... Bc6 {[%clk 0:02:48.3]} 9. Qg4 {[%clk 0:03:01.2]} 9...
Qf6 {[%clk 0:02:45.9]} 10. Be2 {[%clk 0:02:38.3]} 10... Nd7 {[%clk 0:02:39.6]}
11. Bg5 {[%clk 0:02:34.3]} 11... Qf5 {[%clk 0:02:37.4]} 12. Qxf5 {[%clk
0:02:33.1]} 12... exf5 {[%clk 0:02:38.3]} 13. d4 {[%clk 0:02:30.1]} 13... Bd6
{[%clk 0:02:32.3]} 14. O-O-O {[%clk 0:02:27.1]} 14... h6 {[%clk 0:02:13.6]} 15.
Be3 {[%clk 0:02:06.4]} 15... f4 {[%clk 0:02:10]} 16. Bd2 {[%clk 0:02:04.1]}
16... Nf6 {[%clk 0:02:05.4]} 17. Bd3 {[%clk 0:01:30.6]} 17... O-O-O {[%clk
0:01:59.1]} 18. Rhe1 {[%clk 0:01:24.2]} 18... Rhe8 {[%clk 0:01:58.6]} 19. Kc2
{[%clk 0:01:16.2]} 19... Ne4 {[%clk 0:01:53.7]} 20. Re2 {[%clk 0:01:15.8]} 20...
Nxd2 {[%clk 0:01:47.7]} 21. Kxd2 {[%clk 0:01:06.5]} 21... Bxf3 {[%clk
0:01:41.9]} 22. gxf3 {[%clk 0:01:07.4]} 22... c6 {[%clk 0:01:31]} 23. Re4 {[%clk
0:01:03.4]} 23... Kc7 {[%clk 0:01:16.8]} 24. Rde1 {[%clk 0:01:01.2]} 24... Rxe4
{[%clk 0:01:08.2]} 25. fxe4 {[%clk 0:01:02.1]} 25... f6 {[%clk 0:01:08.7]} 26.
b4 {[%clk 0:00:51]} 26... b6 {[%clk 0:01:06.2]} 27. f3 {[%clk 0:00:44.9]} 27...
Re8 {[%clk 0:01:02.1]} 28. h4 {[%clk 0:00:33]} 28... c5 {[%clk 0:00:49.8]} 29.
bxc5 {[%clk 0:00:19.7]} 29... bxc5 {[%clk 0:00:50.7]} 30. Rb1 {[%clk 0:00:17.1]}
30... g5 {[%clk 0:00:40.5]} 31. Rh1 {[%clk 0:00:14.6]} 31... cxd4 {[%clk
0:00:37.5]} 32. cxd4 {[%clk 0:00:13.3]} 32... Bb4+ {[%clk 0:00:35.7]} 33. Kc2
{[%clk 0:00:12.9]} 33... Rd8 {[%clk 0:00:20.4]} 34. hxg5 {[%clk 0:00:11.8]}
34... hxg5 {[%clk 0:00:21.3]} 35. d5 {[%clk 0:00:08.7]} 35... Bd6 {[%clk
0:00:19.9]} 36. Bb5 {[%clk 0:00:08.3]} 36... Kb6 {[%clk 0:00:18.5]} 37. Bc6
{[%clk 0:00:07.5]} 37... Rc8 {[%clk 0:00:15.1]} 38. Rb1+ {[%clk 0:00:07.6]}
38... Kc5 {[%clk 0:00:14.7]} 39. Rb7 {[%clk 0:00:07.6]} 39... Rc7 {[%clk
0:00:14.9]} 40. Rb3 {[%clk 0:00:05.4]} 40... Kd4 {[%clk 0:00:14.7]} 41. Kd2
{[%clk 0:00:05]} 41... g4 {[%clk 0:00:13.7]} 42. fxg4 {[%clk 0:00:01.6]} 42...
Kxe4 {[%clk 0:00:14]} 43. Rc3 {[%clk 0:00:01.8]} 43... Bb4 {[%clk 0:00:13.6]}
0-1

[Event "*** Titled Tuesday Blitz"]
[Site "Chess.com"]
[Date "2020.05.19"]
[Round "4"]
[White "Corpescador"]
[Black "Fusikk"]
[Result "0-1"]
[WhiteElo "2374"]
[BlackElo "2580"]
[TimeControl "180+1"]
[EndTime "12:40:53 PDT"]
[Termination "Fusikk won by resignation"]

1. e4 {[%clk 0:03:00.9]} 1... e5 {[%clk 0:02:58.1]} 2. Nf3 {[%clk 0:03:00.9]}
2... Nc6 {[%clk 0:02:58.6]} 3. Bb5 {[%clk 0:03:01.1]} 3... a6 {[%clk 0:02:58.6]}
4. Ba4 {[%clk 0:03:01.4]} 4... d6 {[%clk 0:02:58.7]} 5. c3 {[%clk 0:03:00.5]}
5... Bd7 {[%clk 0:02:59.2]} 6. d4 {[%clk 0:02:59.1]} 6... Nf6 {[%clk 0:02:55.9]}
7. d5 {[%clk 0:02:42]} 7... Ne7 {[%clk 0:02:42.6]} 8. Bxd7+ {[%clk 0:02:41.7]}
8... Nxd7 {[%clk 0:02:41.7]} 9. c4 {[%clk 0:02:39.6]} 9... g6 {[%clk 0:02:41.6]}
10. O-O {[%clk 0:02:39.4]} 10... Bg7 {[%clk 0:02:41.7]} 11. Nc3 {[%clk
0:02:39.3]} 11... O-O {[%clk 0:02:41.6]} 12. Bd2 {[%clk 0:02:34.2]} 12... a5
{[%clk 0:02:41.2]} 13. Rc1 {[%clk 0:02:21]} 13... h6 {[%clk 0:02:40.2]} 14. Ne1
{[%clk 0:02:20.7]} 14... f5 {[%clk 0:02:39.4]} 15. f3 {[%clk 0:02:20.9]} 15...
f4 {[%clk 0:02:36.7]} 16. Nd3 {[%clk 0:02:20.2]} 16... g5 {[%clk 0:02:35.9]} 17.
a3 {[%clk 0:02:14]} 17... b6 {[%clk 0:02:33.7]} 18. b4 {[%clk 0:02:11.5]} 18...
axb4 {[%clk 0:02:34.6]} 19. axb4 {[%clk 0:02:11.5]} 19... Nf6 {[%clk 0:02:31.2]}
20. c5 {[%clk 0:02:08]} 20... bxc5 {[%clk 0:02:30.6]} 21. bxc5 {[%clk
0:02:07.7]} 21... Rf7 {[%clk 0:02:29]} 22. Qe2 {[%clk 0:01:36.3]} 22... Bf8
{[%clk 0:02:28.1]} 23. Ra1 {[%clk 0:01:30.8]} 23... Rxa1 {[%clk 0:02:24.8]} 24.
Rxa1 {[%clk 0:01:30.4]} 24... Rg7 {[%clk 0:02:25.4]} 25. Kh1 {[%clk 0:01:29]}
25... g4 {[%clk 0:02:23.8]} 26. c6 {[%clk 0:01:22.4]} 26... h5 {[%clk
0:02:14.9]} 27. Nf2 {[%clk 0:01:09.4]} 27... Qc8 {[%clk 0:01:53.9]} 28. Qa6
{[%clk 0:01:05.8]} 28... Qe8 {[%clk 0:01:49.6]} 29. Qf1 {[%clk 0:00:44.7]} 29...
Ng6 {[%clk 0:01:48.6]} 30. Ra7 {[%clk 0:00:32.2]} 30... Nh4 {[%clk 0:01:46.8]}
31. Nb5 {[%clk 0:00:16.9]} 31... gxf3 {[%clk 0:01:42.4]} 32. gxf3 {[%clk
0:00:14.8]} 32... Nxf3 {[%clk 0:01:42.2]} 33. Nh3 {[%clk 0:00:14.2]} 33... Nxd2
{[%clk 0:01:39.9]} 34. Qe2 {[%clk 0:00:13.6]} 34... Nfxe4 {[%clk 0:01:36.4]} 35.
Rxc7 {[%clk 0:00:12.3]} 35... f3 {[%clk 0:01:31.2]} 36. Qe3 {[%clk 0:00:12.1]}
36... Qg6 {[%clk 0:01:29.7]} 37. Rxg7+ {[%clk 0:00:10.7]} 37... Qxg7 {[%clk
0:01:29.1]} 38. Qg1 {[%clk 0:00:10.4]} 38... Qxg1+ {[%clk 0:00:53.6]} 39. Kxg1
{[%clk 0:00:09.7]} 39... Nc4 {[%clk 0:00:49.3]} 40. c7 {[%clk 0:00:05.2]} 40...
Nb6 {[%clk 0:00:49.1]} 41. Na7 {[%clk 0:00:05.2]} 41... Bh6 {[%clk 0:00:48.7]}
42. c8=Q+ {[%clk 0:00:04.1]} 42... Nxc8 {[%clk 0:00:48.3]} 43. Nxc8 {[%clk
0:00:05]} 43... Be3+ {[%clk 0:00:48.8]} 44. Kf1 {[%clk 0:00:05.4]} 44... f2
{[%clk 0:00:44.6]} 45. Kg2 {[%clk 0:00:02]} 45... Bc5 {[%clk 0:00:41.6]} 46.
Ne7+ {[%clk 0:00:01.5]} 46... Kf7 {[%clk 0:00:41]} 47. Nf5 {[%clk 0:00:02.4]}
47... Kf6 {[%clk 0:00:39]} 48. Ng3 {[%clk 0:00:02.5]} 48... Nxg3 {[%clk
0:00:38.5]} 49. hxg3 {[%clk 0:00:03.3]} 49... Kf5 {[%clk 0:00:37.9]} 50. Nxf2
{[%clk 0:00:01.4]} 50... Bxf2 {[%clk 0:00:37.3]} 51. Kxf2 {[%clk 0:00:02.3]}
51... Ke4 {[%clk 0:00:37.6]} 0-1